bitfinex/quotes_BTCUSD_20240821
["timestamp","ask_amount","ask_price","bid_price","bid_amount"]
[1724258682699,0.000822,59837.0,59836.0,1.27413484]
[1724258682928,0.000822,59837.0,59836.0,1.26713484]
[1724258683151,0.000822,59837.0,59836.0,1.21751737]
[1724258683377,0.000822,59837.0,59836.0,1.21051737]
[1724258683594,0.000822,59837.0,59836.0,1.26012941]
[1724258683810,0.000822,59837.0,59836.0,1.29294594]
[1724258684005,0.000822,59837.0,59836.0,1.21851737]
[1724258684906,0.000822,59837.0,59836.0,1.22651737]
[1724258685427,0.000822,59837.0,59836.0,1.27612938]
[1724258685673,0.000822,59837.0,59836.0,1.22651737]
[1724258685895,0.000822,59837.0,59836.0,1.27612895]
[1724258686120,0.000822,59837.0,59836.0,1.22651737]
[1724258686353,0.000822,59837.0,59836.0,1.30092702]
[1724258686571,0.000822,59837.0,59836.0,1.67155663]
[1724258686783,0.000822,59837.0,59836.0,1.59715167]
[1724258686997,0.000822,59837.0,59836.0,1.58915167]
[1724258687221,0.000822,59837.0,59836.0,2.08840065]
[1724258687688,0.000822,59837.0,59836.0,1.80216972]
[1724258687901,0.000822,59837.0,59836.0,1.72776635]
[1724258688114,0.000822,59837.0,59836.0,1.78316972]
[1724258688538,0.000822,59837.0,59836.0,2.16180542]
[1724258688814,0.000822,59837.0,59836.0,2.16180431]
[1724258689029,0.000822,59837.0,59836.0,2.08740094]
[1724258689459,0.000822,59837.0,59836.0,2.16180951]
[1724258690138,0.000822,59837.0,59836.0,2.07940094]
[1724258690349,0.000822,59837.0,59836.0,2.09240094]
[1724258690580,0.000822,59837.0,59836.0,2.10440094]
[1724258691251,0.000822,59837.0,59836.0,2.15377217]
[1724258691468,0.000822,59837.0,59836.0,2.09240094]
[1724258691686,0.000822,59837.0,59836.0,2.10440094]
[1724258691923,0.000822,59837.0,59836.0,2.09140094]
[1724258692359,0.000822,59837.0,59836.0,2.10440094]
[1724258692592,0.000822,59837.0,59836.0,2.11640094]
[1724258693502,0.000822,59837.0,59836.0,2.19077225]
[1724258693759,0.000822,59837.0,59836.0,1.80713766]
[1724258694019,0.000822,59837.0,59836.0,1.79613766]
[1724258694248,0.00843,59839.0,59836.0,1.79613766]
[1724258694249,0.00843,59839.0,59838.0,0.835587]
[1724258694473,0.00843,59839.0,59838.0,0.501352]
[1724258694697,0.00843,59839.0,59838.0,0.51289516]
[1724258695638,0.00843,59839.0,59838.0,0.02254316]
[1724258695869,0.00843,59839.0,59838.0,0.19666016]
[1724258696780,0.00843,59839.0,59838.0,0.51989516]
[1724258697002,0.00843,59839.0,59838.0,0.72089516]
[1724258697228,0.00843,59839.0,59838.0,1.05513016]
[1724258697448,0.00843,59839.0,59838.0,1.06513016]
[1724258697725,0.00843,59839.0,59838.0,1.05813016]
[1724258697943,0.00843,59839.0,59838.0,1.11871842]
[1724258698165,0.00843,59839.0,59838.0,1.10871842]
[1724258698626,0.00843,59839.0,59838.0,1.11771842]
[1724258698846,0.00843,59839.0,59838.0,1.06813016]
[1724258699332,0.00843,59839.0,59838.0,1.05913016]
[1724258700532,0.00843,59839.0,59838.0,0.02254316]
[1724258700983,0.00843,59839.0,59838.0,0.03254316]
[1724258701204,0.00843,59839.0,59838.0,0.19966016]
[1724258701432,0.00843,59839.0,59838.0,0.03254316]
[1724258701662,0.00843,59839.0,59838.0,0.19966016]
[1724258704633,0.00843,59839.0,59838.0,0.89669516]
[1724258706004,0.00843,59839.0,59838.0,1.23093016]
[1724258710677,0.00843,59839.0,59838.0,0.355235]
[1724258710904,0.00843,59839.0,59838.0,0.73659516]
[1724258711378,0.00843,59839.0,59838.0,0.40236016]
[1724258712349,0.00843,59839.0,59838.0,0.73659516]
[1724258712571,0.00843,59839.0,59838.0,0.90239516]
[1724258712804,0.00843,59839.0,59838.0,1.23663016]
[1724258716504,0.00843,59839.0,59838.0,1.28617158]
[1724258717344,0.00843,59839.0,59838.0,1.68158113]
[1724258717558,0.00843,59839.0,59838.0,1.70635184]
[1724258717559,1e-08,59839.0,59838.0,1.70635184]
[1724258717786,1e-08,59839.0,59838.0,1.87035482]
[1724258718009,1e-08,59839.0,59838.0,2.22936054]
[1724258718685,1e-08,59839.0,59838.0,2.10550697]
[1724258719358,1e-08,59839.0,59838.0,2.44474197]
[1724258719908,1e-08,59839.0,59838.0,2.59336625]
[1724258720134,0.00823,59845.0,59844.0,0.835505]
[1724258720357,0.00823,59845.0,59844.0,1.73494681]
[1724258720568,0.00823,59845.0,59844.0,1.74647304]
[1724258721001,0.00823,59845.0,59844.0,2.08067504]
[1724258721649,0.00823,59845.0,59844.0,2.08367504]
[1724258722283,0.00823,59845.0,59844.0,2.12006468]
[1724258722541,0.00823,59845.0,59844.0,1.74942585]
[1724258722752,0.00823,59845.0,59844.0,1.75342585]
[1724258723435,0.00823,59845.0,59844.0,1.74942585]
[1724258723889,0.00823,59845.0,59844.0,1.42222385]
[1724258724309,0.00823,59845.0,59844.0,1.41922385]
[1724258724547,0.00823,59845.0,59844.0,2.08706343]
[1724258724803,0.00823,59845.0,59844.0,2.09406343]
[1724258725658,0.00823,59845.0,59844.0,0.39611787]
[1724258726179,0.00823,59845.0,59844.0,0.52042312]
[1724258726395,0.00823,59845.0,59844.0,0.52426519]
[1724258728171,0.00405828,59845.0,59844.0,0.39995994]
[1724258728388,0.00405828,59845.0,59844.0,0.49941165]
[1724258728599,0.00405828,59845.0,59844.0,0.39995994]
[1724258728846,0.00405828,59845.0,59844.0,0.49940964]
[1724258729066,0.00405828,59845.0,59844.0,0.49941216]
[1724258729292,0.21615828,59845.0,59844.0,0.49941216]
[1724258729513,0.37855828,59845.0,59844.0,0.49941216]
[1724258730927,0.37855828,59845.0,59844.0,0.0293683]
[1724258730928,0.54565628,59845.0,59844.0,0.0293683]
[1724258731148,0.54565628,59845.0,59844.0,0.08862729]
[1724258731149,0.37855828,59845.0,59844.0,0.08862729]
[1724258731365,0.37855828,59845.0,59844.0,0.02936831]
[1724258731820,1.50434828,59845.0,59844.0,0.07912203]
[1724258732051,1.50434828,59845.0,59844.0,0.014]
[1724258732298,1.5305529,59845.0,59844.0,0.014]
[1724258732793,1.5305529,59845.0,59844.0,0.007]
[1724258733014,1.5315529,59845.0,59844.0,0.007]
[1724258733456,1.50534828,59845.0,59844.0,0.007]
[1724258733682,0.00505828,59845.0,59840.0,0.41165372]
[1724258733944,0.00505828,59845.0,59838.0,0.07553478]
[1724258733945,0.00605828,59845.0,59842.0,0.04975372]
[1724258734197,0.17315628,59845.0,59842.0,0.04975372]
[1724258734417,0.167101,59844.0,59843.0,0.06512579]
[1724258734653,0.00505828,59845.0,59843.0,0.06512579]
[1724258734884,0.00505828,59845.0,59844.0,0.04973642]
[1724258735393,0.00505828,59845.0,59844.0,0.460644]
[1724258735394,0.00605828,59845.0,59844.0,0.460644]
[1724258736059,0.00505828,59845.0,59844.0,1.01452186]
[1724258736305,0.00505828,59845.0,59844.0,1.34867395]
[1724258736306,0.00605828,59845.0,59844.0,1.34867395]
[1724258736546,0.00605828,59845.0,59844.0,1.87174594]
[1724258736774,0.0262038,59848.0,59847.0,0.167092]
[1724258737002,0.00040387,59855.0,59854.0,0.835365]
[1724258737252,0.00040387,59855.0,59854.0,1.85147491]
[1724258737938,0.00040387,59855.0,59854.0,1.72720258]
[1724258738396,0.00140387,59855.0,59854.0,2.39509639]
[1724258738622,0.00140387,59855.0,59854.0,1.87633822]
[1724258738623,0.00040387,59855.0,59854.0,1.87633822]
[1724258738852,0.0001468,59855.0,59854.0,2.24596075]
[1724258739135,0.0001468,59855.0,59854.0,2.26129146]
[1724258739356,0.0001468,59855.0,59854.0,1.90249235]
[1724258739597,0.0001468,59855.0,59854.0,1.75353329]
[1724258739822,0.0001468,59855.0,59854.0,1.08524129]
[1724258740048,0.0001468,59855.0,59854.0,1.09524129]
[1724258740271,0.0001468,59855.0,59854.0,1.42938729]
[1724258740772,0.0001468,59855.0,59854.0,0.92816829]
[1724258740998,0.0001468,59855.0,59854.0,1.05228381]
[1724258741232,0.0001468,59855.0,59854.0,1.02745608]
[1724258741460,0.0001468,59855.0,59854.0,0.72978083]
[1724258741726,0.0001468,59855.0,59854.0,0.53108083]
[1724258741942,0.0001468,59855.0,59854.0,0.50625525]
[1724258742387,0.0001468,59855.0,59854.0,0.40696531]
[1724258742614,0.0001468,59855.0,59854.0,0.73583201]
[1724258743094,0.0001468,59855.0,59854.0,0.50621434]
[1724258743318,0.0001468,59855.0,59854.0,0.48140115]
[1724258743541,0.0001468,59855.0,59854.0,0.40696531]
[1724258743792,0.0001468,59855.0,59854.0,0.03633071]
[1724258744012,0.1672168,59855.0,59854.0,0.03633071]
[1724258744464,0.5013568,59855.0,59854.0,0.03633071]
[1724258744704,0.5013568,59855.0,59854.0,0.08595167]
[1724258745377,0.5013568,59855.0,59854.0,0.0859503]
[1724258745894,0.5013568,59855.0,59854.0,0.87862185]
[1724258745895,0.0001468,59855.0,59854.0,0.87862185]
[1724258746130,0.0001468,59855.0,59854.0,0.77938266]
[1724258747356,0.0009688,59855.0,59854.0,0.77938266]
[1724258747595,0.0009688,59855.0,59854.0,0.94338564]
[1724258747836,0.0002,59859.0,59858.0,0.713386]
[1724258748074,0.0002,59859.0,59858.0,1.2632566]
[1724258748318,0.0002,59859.0,59858.0,1.5973806]
[1724258749259,0.0002,59859.0,59858.0,2.4266286]
[1724258749530,0.01247433,59877.0,59871.0,0.3654]
[1724258749773,0.01247433,59877.0,59864.0,0.334085]
[1724258749774,0.167011,59876.0,59869.0,0.04954709]
[1724258750039,0.323811,59876.0,59869.0,0.04954709]
[1724258750271,0.323811,59876.0,59867.0,0.24134699]
[1724258750272,0.323811,59876.0,59868.0,0.04954709]
[1724258750489,0.01247433,59877.0,59871.0,0.24133599]
[1724258750754,0.01247433,59877.0,59871.0,1.44478478]
[1724258750979,0.01247433,59877.0,59871.0,1.46957866]
[1724258751220,0.01247433,59877.0,59871.0,1.07429658]
[1724258751701,0.01247433,59877.0,59871.0,1.77878447]
[1724258751943,0.01247433,59877.0,59871.0,2.08018468]
[1724258751944,1e-08,59872.0,59871.0,2.08018468]
[1724258752173,1e-08,59872.0,59871.0,1.84509072]
[1724258752405,1e-08,59872.0,59871.0,1.74612228]
[1724258752622,1e-08,59872.0,59871.0,1.84509072]
[1724258752842,1e-08,59872.0,59871.0,1.85509072]
[1724258753062,1e-08,59872.0,59871.0,1.75612228]
[1724258753339,1e-08,59872.0,59871.0,2.19814172]
[1724258753578,1e-08,59872.0,59871.0,2.18895882]
[1724258753826,1e-08,59872.0,59871.0,2.19995882]
[1724258754041,1e-08,59872.0,59871.0,2.18995882]
[1724258754270,1e-08,59872.0,59871.0,2.09117328]
[1724258754512,1e-08,59872.0,59871.0,1.73274779]
[1724258754763,1e-08,59872.0,59871.0,1.83374779]
[1724258754990,1e-08,59872.0,59871.0,2.53818284]
[1724258755218,1e-08,59872.0,59871.0,2.52618284]
[1724258755432,1e-08,59872.0,59871.0,2.53818284]
[1724258755986,1e-08,59872.0,59871.0,2.52718284]
[1724258756196,1e-08,59872.0,59871.0,2.53018284]
[1724258756408,1e-08,59872.0,59871.0,2.52618284]
[1724258756629,1e-08,59872.0,59871.0,2.51518284]
[1724258756854,1e-08,59872.0,59871.0,2.19413184]
[1724258757311,1e-08,59872.0,59871.0,2.20813184]
[1724258757771,1e-08,59872.0,59871.0,2.18013184]
[1724258757989,0.01247433,59877.0,59871.0,0.01526681]
[1724258758212,0.2903,59872.0,59871.0,0.04326681]
[1724258758440,0.998867,59872.0,59871.0,0.028]
[1724258758722,1.492412,59872.0,59871.0,0.014]
[1724258758996,1.51860263,59872.0,59871.0,0.014]
[1724258759284,1.85264763,59872.0,59871.0,0.028]
[1724258759553,2.04065061,59872.0,59871.0,0.014]
[1724258759798,2.04265061,59872.0,59871.0,0.028]
[1724258760024,2.04265061,59872.0,59871.0,0.014]
[1724258760242,2.04265061,59872.0,59871.0,0.015]
[1724258760474,0.003,59868.0,59855.0,0.00040223]
[1724258760727,0.822267,59856.0,59855.0,0.00040223]
[1724258760991,1.490537,59856.0,59855.0,0.00040223]
[1724258761221,1.18260116,59856.0,59855.0,0.00040223]
[1724258761441,0.84846616,59856.0,59855.0,0.00040223]
[1724258761678,1.18260116,59856.0,59855.0,0.00040223]
[1724258761898,1.18260116,59856.0,59855.0,0.00440223]
[1724258762305,1.51673616,59856.0,59855.0,0.00440223]
[1724258762824,1.53973616,59856.0,59855.0,0.00440223]
[1724258763047,1.70373914,59856.0,59855.0,0.00440223]
[1724258763272,2.03787414,59856.0,59855.0,0.00440223]
[1724258763747,2.03787414,59856.0,59855.0,0.00740223]
[1724258763975,2.03787414,59856.0,59844.0,0.0009042]
[1724258763976,0.1933,59850.0,59844.0,0.0009042]
[1724258764203,1.12579,59845.0,59844.0,0.0009042]
[1724258764454,1.31279298,59845.0,59844.0,0.0009042]
[1724258764979,0.31650532,59845.0,59844.0,0.0009042]
[1724258765212,0.02620532,59845.0,59844.0,0.3690042]
[1724258765450,0.167074,59854.0,59845.0,0.167097]
[1724258765684,0.167079,59852.0,59844.0,0.55011134]
[1724258765932,0.012,59845.0,59844.0,0.55011134]
[1724258766457,0.012,59845.0,59844.0,1.38251832]
[1724258766912,0.022,59845.0,59844.0,1.38351832]
[1724258767129,0.01,59845.0,59844.0,1.38351832]
[1724258767597,0.167071,59855.0,59847.0,0.16709]
[1724258768094,0.2,59857.0,59846.0,0.167093]
[1724258768095,0.2903,59852.0,59846.0,0.167093]
[1724258769060,0.02620185,59858.0,59847.0,0.1976]
[1724258769298,0.001,59855.0,59852.0,0.167078]
[1724258769519,0.001,59855.0,59850.0,0.167082]
[1724258769740,0.001,59855.0,59851.0,0.16708]
[1724258770266,0.001,59855.0,59854.0,0.501219]
[1724258770515,0.362726,59871.0,59863.0,0.167045]
[1724258770516,0.1957,59871.0,59863.0,0.167045]
[1724258770737,0.362725,59871.0,59862.0,0.167049]
[1724258770979,0.1957,59871.0,59860.0,0.334112]
[1724258771199,0.000822,59872.0,59861.0,0.52823975]
[1724258771494,0.000822,59872.0,59868.0,0.167031]
[1724258771955,0.000822,59872.0,59869.0,0.01392255]
[1724258772420,0.000822,59872.0,59867.0,0.167036]
[1724258772935,0.000822,59872.0,59871.0,0.364225]
[1724258773853,0.000822,59872.0,59871.0,0.698276]
[1724258774331,0.000822,59872.0,59871.0,0.706276]
[1724258774555,0.000822,59872.0,59871.0,0.72019179]
[1724258774770,0.001822,59872.0,59871.0,0.72919179]
[1724258778426,0.001822,59872.0,59871.0,1.06324279]
[1724258782174,0.01247433,59877.0,59876.0,0.167011]
[1724258782424,0.01247433,59877.0,59876.0,0.835057]
[1724258782670,0.01247433,59877.0,59876.0,0.84895588]
[1724258783423,0.01247433,59877.0,59876.0,1.33597888]
[1724258783910,0.01247433,59877.0,59876.0,1.33997888]
[1724258784410,0.01247433,59877.0,59876.0,2.03620486]
[1724258784657,0.00823,59884.0,59883.0,0.83496]
[1724258784920,0.00823,59884.0,59883.0,1.68045969]
[1724258785150,0.00823,59884.0,59883.0,1.70511605]
[1724258785370,0.00823,59884.0,59883.0,1.68044171]
[1724258786249,0.00823,59884.0,59883.0,0.166992]
[1724258786494,0.00823,59884.0,59883.0,0.18240891]
[1724258786949,0.00823,59884.0,59883.0,0.02941691]
[1724258787173,0.00823,59884.0,59883.0,0.54439291]
[1724258787417,0.00923,59884.0,59883.0,0.53039291]
[1724258787625,0.00923,59884.0,59883.0,0.51639291]
[1724258787841,0.01023,59884.0,59883.0,0.53639291]
[1724258788094,0.00923,59884.0,59883.0,0.52639291]
[1724258788323,0.718898,59884.0,59883.0,0.01541691]
[1724258788543,1.3466933,59884.0,59883.0,0.02141691]
[1724258788766,1.72985798,59884.0,59883.0,0.011]
[1724258788988,1.59554168,59884.0,59883.0,0.011]
[1724258789630,1.75854466,59884.0,59883.0,0.005]
[1724258789844,0.167016,59875.0,59866.0,0.167038]
[1724258790064,0.362017,59874.0,59865.0,0.167041]
[1724258790291,0.362017,59874.0,59867.0,0.01930849]
[1724258790513,0.362017,59874.0,59866.0,0.01931332]
[1724258790514,0.16702,59873.0,59866.0,0.01931332]
[1724258790764,0.1536,59871.0,59867.0,0.01930849]
[1724258791197,0.1536,59871.0,59866.0,0.028]
[1724258791445,0.195,59874.0,59868.0,0.01930366]
[1724258791659,0.195,59874.0,59867.0,0.18634249]
[1724258791869,0.195,59874.0,59869.0,0.01929882]
[1724258792125,0.195,59874.0,59868.0,0.01930366]
[1724258792126,0.167021,59873.0,59868.0,0.01930366]
[1724258792347,0.167021,59873.0,59870.0,0.01929399]
[1724258792769,0.167021,59873.0,59867.0,0.014]
[1724258792770,0.001,59873.0,59867.0,0.014]
[1724258792996,0.167017,59875.0,59868.0,0.2117]
[1724258793449,0.167018,59874.0,59868.0,0.2117]
[1724258794368,0.167018,59874.0,59864.0,0.334088]
[1724258794617,0.167025,59872.0,59864.0,0.167043]
[1724258795085,0.167025,59872.0,59860.0,0.72841627]
[1724258795086,0.2903,59869.0,59861.0,0.334105]
[1724258795337,0.2903,59869.0,59860.0,0.4752]
[1724258795338,0.334071,59868.0,59860.0,0.4752]
[1724258795572,0.334071,59868.0,59855.0,0.3350432]
[1724258795573,0.374651,59862.0,59855.0,0.0009042]
[1724258795809,0.167054,59861.0,59855.0,0.0009042]
[1724258796252,0.2076,59862.0,59855.0,0.0009042]
[1724258796253,0.541705,59862.0,59855.0,0.0009042]
[1724258796480,0.457367,59856.0,59855.0,0.0009042]
[1724258796948,0.832006,59862.0,59855.0,0.0009042]
[1724258797382,0.001,59861.0,59855.0,0.0009042]
[1724258797383,0.168054,59861.0,59855.0,0.0009042]
[1724258797606,0.334118,59859.0,59855.0,0.0069042]
[1724258797827,0.167067,59856.0,59855.0,0.0119042]
[1724258798064,0.167067,59856.0,59855.0,0.0059042]
[1724258798283,0.167067,59856.0,59855.0,0.0009042]
[1724258798518,0.334113,59860.0,59855.0,0.0009042]
[1724258798758,0.167063,59858.0,59855.0,0.0009042]
[1724258799239,0.001,59861.0,59855.0,0.0009042]
[1724258799683,0.501193,59857.0,59856.0,0.01936165]
[1724258799921,0.167067,59856.0,59855.0,0.0009042]
[1724258800376,0.167067,59856.0,59855.0,0.0019042]
[1724258800635,0.501202,59856.0,59855.0,0.0019042]
[1724258800855,0.791502,59856.0,59855.0,0.0019042]
[1724258801097,1.15183657,59856.0,59855.0,0.0019042]
[1724258801357,1.15183657,59856.0,59855.0,0.0029042]
[1724258801583,0.81770157,59856.0,59855.0,0.0029042]
[1724258801808,0.81770157,59856.0,59855.0,0.0019042]
[1724258803126,0.81770157,59856.0,59855.0,0.0009042]
[1724258803346,0.81970157,59856.0,59855.0,0.0009042]
[1724258803564,0.82170157,59856.0,59855.0,0.0009042]
[1724258804475,0.461367,59856.0,59855.0,0.0009042]
[1724258804694,0.461367,59856.0,59855.0,0.3709742]
[1724258804695,0.004,59856.0,59855.0,0.3709742]
[1724258804921,0.004,59856.0,59855.0,0.2039042]
[1724258805130,0.167051,59862.0,59855.0,0.22327068]
[1724258805830,0.02619848,59865.0,59856.0,0.1601]
[1724258806069,0.16705,59863.0,59856.0,0.1601]
[1724258806296,0.167051,59862.0,59857.0,0.01935681]
[1724258806549,0.02619848,59865.0,59856.0,0.1601]
[1724258806766,0.16705,59863.0,59858.0,0.01935198]
[1724258806989,0.16705,59863.0,59856.0,0.1601]
[1724258806990,0.16705,59863.0,59857.0,0.01935681]
[1724258807235,0.16705,59863.0,59859.0,0.01934715]
[1724258807236,0.167053,59861.0,59859.0,0.01934715]
[1724258807714,0.334108,59861.0,59858.0,0.01935198]
[1724258807717,0.167053,59862.0,59860.0,0.01934231]
[1724258807931,0.835267,59861.0,59860.0,0.01934231]
[1724258808153,0.167062,59858.0,59855.0,0.0009042]
[1724258809072,0.167065,59857.0,59855.0,0.0009042]
[1724258810237,0.167065,59857.0,59855.0,0.0039042]
[1724258810460,0.167065,59857.0,59855.0,0.0059042]
[1724258810917,0.167062,59858.0,59855.0,0.0059042]
[1724258811146,0.167064,59857.0,59855.0,0.0059042]
[1724258812276,0.167067,59856.0,59855.0,0.0059042]
[1724258813125,0.167067,59856.0,59855.0,0.0039042]
[1724258813575,0.1959,59857.0,59855.0,0.0039042]
[1724258813576,0.362964,59857.0,59855.0,0.0019042]
[1724258813792,0.001,59856.0,59855.0,0.0019042]
[1724258814022,0.001,59856.0,59855.0,0.0009042]
[1724258815864,0.502202,59856.0,59855.0,0.0009042]
[1724258816111,0.657602,59856.0,59855.0,0.0009042]
[1724258816786,0.991737,59856.0,59855.0,0.0009042]
[1724258817004,0.992737,59856.0,59855.0,0.0009042]
[1724258817244,0.658602,59856.0,59855.0,0.0009042]
[1724258817506,0.992737,59856.0,59855.0,0.0009042]
[1724258817940,1.202937,59856.0,59855.0,0.0009042]
[1724258818169,1.20253499,59856.0,59855.0,0.0009042]
[1724258818421,1.54582381,59856.0,59855.0,0.0009042]
[1724258818671,2.16080797,59856.0,59855.0,0.0009042]
[1724258819128,2.15780797,59856.0,59855.0,0.0009042]
[1724258819605,2.16280797,59856.0,59855.0,0.0009042]
[1724258819852,2.16380797,59856.0,59855.0,0.0009042]
[1724258820075,2.15980797,59856.0,59855.0,0.0009042]
[1724258820285,2.16751668,59856.0,59855.0,0.0009042]
[1724258820503,2.16951668,59856.0,59855.0,0.0009042]
[1724258820733,2.17651668,59856.0,59855.0,0.0029042]
[1724258820998,0.38586499,59856.0,59855.0,0.0029042]
[1724258821247,0.510202,59856.0,59855.0,0.0029042]
[1724258821729,0.176067,59856.0,59855.0,0.0029042]
[1724258821959,0.167066,59857.0,59855.0,0.0019042]
[1724258822181,0.334129,59857.0,59855.0,0.0009042]
[1724258822409,0.514202,59856.0,59855.0,0.0019042]
[1724258822626,0.503202,59856.0,59855.0,0.0019042]
[1724258822872,0.508202,59856.0,59855.0,0.0019042]
[1724258823157,0.334125,59858.0,59855.0,0.0009042]
[1724258823379,0.167067,59856.0,59855.0,0.0009042]
[1724258823602,0.002,59857.0,59855.0,0.0009042]
[1724258823603,0.006,59857.0,59855.0,0.0009042]
[1724258823843,0.006,59857.0,59855.0,0.02027068]
[1724258823844,0.004,59857.0,59855.0,0.02027068]
[1724258824095,0.004,59857.0,59855.0,0.0009042]
[1724258824350,0.004,59857.0,59855.0,0.1679732]
[1724258824604,0.004,59857.0,59856.0,0.01936165]
[1724258825051,0.004,59857.0,59856.0,0.68763165]
[1724258825292,0.167035,59868.0,59860.0,0.167055]
[1724258825293,0.000822,59862.0,59860.0,0.167055]
[1724258825755,0.000822,59862.0,59861.0,0.01933748]
[1724258826237,0.000822,59862.0,59861.0,0.18639048]
[1724258826957,0.001822,59862.0,59861.0,0.52049748]
[1724258827198,0.001822,59862.0,59861.0,0.18639048]
[1724258827429,0.005822,59862.0,59861.0,0.18639048]
[1724258828798,0.001822,59862.0,59861.0,0.18639048]
[1724258829021,0.005822,59862.0,59861.0,0.01933748]
[1724258829245,0.005822,59862.0,59861.0,0.18639048]
[1724258829716,0.005822,59862.0,59861.0,0.38429048]
[1724258830420,0.001822,59862.0,59861.0,0.38429048]
[1724258830654,0.001822,59862.0,59861.0,0.38829048]
[1724258831335,0.000822,59862.0,59861.0,0.38829048]
[1724258831619,0.000822,59862.0,59861.0,0.39129048]
[1724258832286,0.000822,59862.0,59861.0,0.44073767]
[1724258833464,0.000822,59862.0,59861.0,0.83597142]
[1724258833730,0.000822,59862.0,59861.0,1.17007842]
[1724258833963,0.000822,59862.0,59861.0,1.09590763]
[1724258834195,0.000822,59862.0,59861.0,1.52890901]
[1724258834422,0.000822,59862.0,59861.0,1.58311463]
[1724258836057,0.000822,59862.0,59861.0,2.08122461]
[1724258836301,0.02619139,59877.0,59861.0,2.08122461]
[1724258836302,0.000822,59879.0,59878.0,0.501018]
[1724258836528,0.000822,59879.0,59878.0,0.55054319]
[1724258836751,0.000822,59879.0,59878.0,0.56551957]
[1724258837414,0.000822,59879.0,59878.0,0.06450157]
[1724258837640,0.655925,59879.0,59878.0,0.01497638]
[1724258837872,1.149031,59879.0,59878.0,0.01497638]
[1724258838105,0.815025,59879.0,59871.0,0.167024]
[1724258838355,0.000822,59879.0,59878.0,0.167006]
[1724258838601,0.000822,59879.0,59878.0,0.007]
[1724258838844,0.167825,59879.0,59878.0,0.007]
[1724258839567,0.167825,59879.0,59873.0,0.04952519]
[1724258839568,0.167008,59878.0,59873.0,0.04952519]
[1724258839829,0.167009,59877.0,59872.0,0.04950671]
[1724258840058,0.167009,59877.0,59870.0,0.04950671]
[1724258840272,0.02701001,59879.0,59873.0,0.01499517]
[1724258840491,0.02701001,59879.0,59871.0,0.04950671]
[1724258840492,0.167009,59877.0,59871.0,0.04950671]
[1724258840730,0.167009,59877.0,59874.0,0.01499141]
[1724258840963,0.167009,59877.0,59871.0,0.05150671]
[1724258841209,0.167009,59877.0,59872.0,0.004]
[1724258841444,0.19401601,59879.0,59871.0,0.04979592]
[1724258841677,0.000822,59879.0,59873.0,0.04950671]
[1724258841895,0.000822,59879.0,59874.0,0.167016]
[1724258842136,0.000822,59879.0,59876.0,0.167011]
[1724258842371,0.000822,59879.0,59877.0,0.167008]
[1724258842606,0.000822,59879.0,59876.0,0.167009]
[1724258842840,0.000822,59879.0,59877.0,0.167008]
[1724258843757,0.000822,59879.0,59876.0,0.002]
[1724258843994,0.000822,59879.0,59877.0,0.167008]
[1724258844232,0.000822,59879.0,59876.0,0.167011]
[1724258844454,0.000822,59879.0,59878.0,0.1593]
[1724258844919,0.000822,59879.0,59878.0,0.660318]
[1724258845398,0.000822,59879.0,59878.0,0.1593]
[1724258845644,0.000822,59879.0,59878.0,0.001]
[1724258846367,1.196337,59879.0,59878.0,0.001]
[1724258846593,1.553343,59879.0,59878.0,0.001]
[1724258847536,1.553343,59879.0,59878.0,0.003]
[1724258848050,1.043037,59879.0,59878.0,0.003]
[1724258848286,0.000822,59879.0,59878.0,0.003]
[1724258852458,0.000822,59879.0,59878.0,0.170006]
[1724258852774,0.000822,59879.0,59878.0,0.504018]
[1724258853234,0.00823,59884.0,59880.0,0.167]
[1724258853673,0.00823,59884.0,59879.0,0.334002]
[1724258853915,0.00823,59884.0,59880.0,0.166999]
[1724258854679,0.01223,59884.0,59880.0,0.166999]
[1724258855352,0.00823,59884.0,59880.0,0.166999]
[1724258856038,0.00823,59884.0,59883.0,0.691576]
[1724258856309,0.00823,59884.0,59883.0,1.34306298]
[1724258856575,0.00823,59884.0,59883.0,1.34335218]
[1724258857316,0.00823,59884.0,59883.0,0.00028919]
[1724258858014,0.00823,59884.0,59883.0,0.01128919]
[1724258858241,0.00823,59884.0,59883.0,0.00028919]
[1724258858482,0.00823,59884.0,59883.0,0.01128919]
[1724258858718,0.00823,59884.0,59883.0,0.50126519]
[1724258858957,0.00823,59884.0,59883.0,0.70256519]
[1724258859448,0.00823,59884.0,59883.0,0.70056519]
[1724258860670,0.00823,59884.0,59883.0,0.70556519]
[1724258860901,0.00823,59884.0,59883.0,0.70456519]
[1724258861381,0.00823,59884.0,59883.0,0.70956519]
[1724258861608,0.00823,59884.0,59883.0,0.71756519]
[1724258862344,0.00823,59884.0,59883.0,1.05154919]
[1724258862833,0.00823,59884.0,59883.0,0.71756519]
[1724258863257,0.00823,59884.0,59883.0,0.71756518]
[1724258865881,0.00823,59884.0,59883.0,0.51826518]
[1724258866109,0.00823,59884.0,59883.0,0.18428118]
[1724258866356,0.00823,59884.0,59883.0,0.03224678]
[1724258868028,1.334877,59884.0,59883.0,0.03224678]
[1724258868301,1.8485429,59884.0,59883.0,0.03224678]
[1724258868535,1.5145639,59884.0,59883.0,0.01728918]
[1724258868777,1.5145639,59884.0,59883.0,0.00928918]
[1724258869709,1.5145639,59884.0,59883.0,0.00942334]
[1724258869910,1.5145639,59884.0,59883.0,0.00042334]
[1724258870135,1.5155639,59884.0,59883.0,0.00042334]
[1724258870350,1.5195639,59884.0,59883.0,0.00042334]
[1724258873055,1.8535429,59884.0,59883.0,0.00042334]
[1724258874509,2.04154588,59884.0,59883.0,0.00042334]
[1724258874729,2.04054588,59884.0,59883.0,0.00042334]
[1724258875660,2.03954588,59884.0,59883.0,0.00042334]
[1724258877069,2.04454588,59884.0,59883.0,0.00142334]
[1724258877306,2.05254588,59884.0,59883.0,0.00242334]
[1724258877522,1.8845429,59884.0,59883.0,0.00142334]
[1724258877967,1.8875429,59884.0,59883.0,0.00142334]
[1724258878191,1.8715429,59884.0,59883.0,0.00042334]
[1724258878675,1.8795429,59884.0,59883.0,0.00142334]
[1724258879372,1.8795429,59884.0,59883.0,0.00242334]
[1724258879600,1.8875429,59884.0,59883.0,0.00242334]
[1724258880049,1.8795429,59884.0,59883.0,0.00142334]
[1724258880491,1.8845429,59884.0,59883.0,0.00242334]